fUST/lending_fUST_20250601
["ID","MTS","AMOUNT","RATE_DAILY","PERIOD"]
[363439655,1748723460894,-667.22,0.00020821,2]
[363439656,1748723460904,-513.6,0.00020821,2]
[363439657,1748723460914,-509.46,0.00020821,2]
[363439658,1748723460924,-1316.21,0.00020821,2]
[363439659,1748723460934,-567.48,0.00020821,2]
[363439660,1748723460945,-430.0,0.00020821,2]
[363439661,1748723460955,-532.09,0.00020821,2]
[363439662,1748723460966,-1844.99,0.00020821,2]
[363439663,1748723460977,-1176.528951,0.00020821,2]
[363439664,1748723460987,-1277.28,0.00020821,2]
[363439665,1748723460997,-2211.97,0.00020821,2]
[363439666,1748723461009,-1176.528951,0.00020821,2]
[363439667,1748723461019,-623.15,0.00020821,2]
[363439668,1748723461029,-1211.99,0.00020821,2]
[363439669,1748723461039,-635.21,0.00020821,2]
[363439670,1748723461050,-151.0,0.00020821,2]
[363439671,1748723461060,-151.0,0.00020821,2]
[363439672,1748723461071,-2050.88,0.00020821,2]
[363439673,1748723461081,-1054.69,0.00020821,2]
[363439674,1748723461091,-1983.68,0.00020821,2]
[363439675,1748723461102,-652.27917079,0.0002083,2]
[363439676,1748723461112,-68620.89,0.000209,2]
[363439677,1748723461122,-151.0,0.000209,2]
[363439678,1748723461132,-151.0,0.000209,2]
[363439679,1748723461143,-300.898304,0.000209,2]
[363439681,1748723461152,-349.805213,0.000209,2]
[363439683,1748723461162,-349.805213,0.000209,2]
[363439684,1748723461173,-151.0,0.000209,2]
[363439685,1748723461182,-165.745473,0.000209,2]
[363439686,1748723461327,-165.745473,0.000209,2]
[363439687,1748723461339,-239.63819,0.000209,2]
[363439688,1748723461350,-151.0,0.000209,2]
[363439689,1748723461359,-152.292857,0.000209,2]
[363439690,1748723461368,-471.524444,0.000209,2]
[363439691,1748723461379,-471.524444,0.000209,2]
[363439692,1748723461389,-16862.30949666,0.00020917,2]
[363439694,1748723461399,-791.05560132,0.00021038,4]
[363439696,1748723461410,-800.0,0.0002106,2]
[363439698,1748723461420,-1500.0,0.00021068,2]
[363439700,1748723461430,-1500.0,0.00021068,2]
[363439702,1748723461439,-1800.0,0.00021068,2]
[363439704,1748723461448,-491.25,0.00021095,2]
[363439706,1748723461458,-430.0,0.00021095,2]
[363439708,1748723461468,-1346.28,0.00021095,2]
[363439710,1748723461477,-1275.45,0.00021095,2]
[363439711,1748723461487,-4058.21,0.00021095,2]
[363439713,1748723461497,-687.42,0.00021095,2]
[363439715,1748723461507,-510.22,0.00021095,2]
[363439717,1748723461517,-1855.36,0.00021095,2]
[363439719,1748723461526,-549.28,0.00021095,2]
[363439721,1748723461536,-151.0,0.00021095,2]
[363439723,1748723461546,-2545.31,0.00021095,2]
[363439725,1748723461557,-2440.1,0.00021095,2]
[363439727,1748723461567,-4161.42,0.00021095,2]
[363439729,1748723461577,-3821.95,0.00021095,2]
[363439731,1748723461587,-1169.390063,0.00021095,2]
[363439733,1748723461596,-1169.390063,0.00021095,2]
[363439735,1748723461606,-151.0,0.00021095,2]
[363439737,1748723461616,-1787.9,0.00021095,2]
[363439738,1748723461626,-151.0,0.00021095,2]
[363439740,1748723461636,-997.0,0.00021095,2]
[363439742,1748723461646,-151.0,0.00021095,2]
[363439744,1748723461656,-151.0,0.00021095,2]
[363439745,1748723461665,-166.302287,0.00021095,2]
[363439746,1748723461675,-1305.15,0.00021095,2]
[363439747,1748723461685,-166.302287,0.00021095,2]
[363439748,1748723461696,-635.47,0.00021095,2]
[363439749,1748723461706,-676.32,0.00021095,2]
[363439750,1748723461718,-604.46,0.00021095,2]
[363439751,1748723461728,-2103.24,0.00021095,2]
[363439752,1748723461738,-691.42,0.00021095,2]
[363439753,1748723461748,-565.94,0.00021095,2]
[363439754,1748723461758,-667.22,0.00021095,2]
[363439755,1748723461768,-151.0,0.00021095,2]
[363439756,1748723461779,-347.002619,0.00021095,2]
[363439757,1748723461789,-347.002619,0.00021095,2]
[363439758,1748723461799,-509.46,0.00021095,2]
[363439759,1748723461809,-1316.21,0.00021095,2]
[363439760,1748723461819,-567.48,0.00021095,2]
[363439761,1748723461830,-716.499511,0.00021095,2]
[363439762,1748723461840,-430.0,0.00021095,2]
[363439763,1748723461850,-716.499511,0.00021095,2]
[363439764,1748723461860,-1844.99,0.00021095,2]
[363439765,1748723461870,-1277.28,0.00021095,2]
[363439766,1748723461880,-2211.97,0.00021095,2]
[363439767,1748723461893,-623.15,0.00021095,2]
[363439768,1748723461903,-1211.99,0.00021095,2]
[363439769,1748723461913,-635.21,0.00021095,2]
[363439770,1748723461924,-798.672016,0.00021095,2]
[363439771,1748723461934,-798.672016,0.00021095,2]
[363439772,1748723461945,-2050.88,0.00021095,2]
[363439773,1748723461956,-1054.69,0.00021095,2]
[363439774,1748723461966,-1983.68,0.00021095,2]
[363439775,1748723461976,-652.27917079,0.00021233,2]
[363439776,1748723461986,-151.0,0.00021279,2]
[363439777,1748723461996,-151.0,0.00021279,2]
[363439778,1748723462006,-791.05560132,0.00021279,5]
[363439779,1748723462017,-151.0,0.00021369,2]
[363439780,1748723462027,-151.0,0.00021369,2]
[363439781,1748723462038,-338.268121,0.00021369,2]
[363439782,1748723462048,-151.0,0.00021369,2]
[363439783,1748723462058,-338.268121,0.00021369,2]
[363439784,1748723462068,-151.0,0.00021369,2]
[363439785,1748723462079,-491.25,0.00021369,2]
[363439788,1748723462088,-1246.951292,0.00021369,2]
[363439789,1748723462098,-1246.951292,0.00021369,2]
[363439791,1748723462107,-430.0,0.00021369,2]
[363439793,1748723462118,-1346.28,0.00021369,2]
[363439795,1748723462127,-1275.45,0.00021369,2]
[363439798,1748723462138,-4058.21,0.00021369,2]
[363439800,1748723462148,-687.42,0.00021369,2]
[363439802,1748723462158,-510.22,0.00021369,2]
[363439803,1748723462168,-1855.36,0.00021369,2]
[363439805,1748723462178,-549.28,0.00021369,2]
[363439807,1748723462188,-2545.31,0.00021369,2]
[363439808,1748723462197,-2440.1,0.00021369,2]
[363439809,1748723462207,-4161.42,0.00021369,2]
[363439811,1748723462218,-3821.95,0.00021369,2]
[363439812,1748723462228,-1787.9,0.00021369,2]
[363439813,1748723462238,-997.0,0.00021369,2]
[363439814,1748723462247,-1305.15,0.00021369,2]
[363439815,1748723462257,-635.47,0.00021369,2]
[363439816,1748723462267,-676.32,0.00021369,2]
[363439817,1748723462277,-604.46,0.00021369,2]
[363439818,1748723462286,-2103.24,0.00021369,2]
[363439819,1748723462296,-691.42,0.00021369,2]
[363439820,1748723462306,-565.94,0.00021369,2]
[363439821,1748723462315,-667.22,0.00021369,2]
[363439822,1748723462326,-151.0,0.00021369,2]
[363439823,1748723462336,-509.46,0.00021369,2]
[363439824,1748723462346,-1316.21,0.00021369,2]
[363439825,1748723462356,-567.48,0.00021369,2]
[363439826,1748723462366,-430.0,0.00021369,2]
[363439827,1748723462376,-1844.99,0.00021369,2]
[363439828,1748723462387,-1277.28,0.00021369,2]
[363439829,1748723462397,-2211.97,0.00021369,2]
[363439830,1748723462406,-471.524444,0.00021369,2]
[363439831,1748723462415,-471.524444,0.00021369,2]
[363439832,1748723462425,-623.15,0.00021369,2]
[363439833,1748723462435,-1211.99,0.00021369,2]
[363439834,1748723462444,-635.21,0.00021369,2]
[363439835,1748723462455,-151.0,0.00021369,2]
[363439836,1748723462464,-174.151448,0.00021369,2]
[363439837,1748723462474,-2050.88,0.00021369,2]
[363439838,1748723462484,-1054.69,0.00021369,2]
[363439839,1748723462493,-1983.68,0.00021369,2]
[363439840,1748723462503,-842.5625,0.000214,3]
[363439841,1748723462515,-160.0,0.000214,3]
[363439842,1748723462524,-200.302633,0.00021462,2]
[363439843,1748723462534,-151.0,0.00021462,2]
[363439844,1748723462544,-218.975312,0.00021462,2]
[363439845,1748723462553,-151.0,0.00021462,2]
[363439846,1748723462563,-1176.528951,0.00021462,2]
[363439847,1748723462573,-1176.528951,0.00021462,2]
[363439848,1748723462583,-652.27917079,0.00021465,2]
[363439849,1748723462592,-791.05560132,0.00021521,5]
[363439850,1748723462604,-33447.45,0.00021555,2]
[363439851,1748723462615,-10503.89,0.000216,2]
[363439852,1748723462625,-223.0315306,0.00021605,2]
[363439853,1748723462635,-1134.13008028,0.00021616,2]
[363439854,1748723462645,-2000.0,0.00021616,2]
[363439855,1748723462655,-1584.09246953,0.00021616,2]
[363439857,1748723462666,-151.0,0.00021643,2]
[363439859,1748723462677,-151.0,0.00021643,2]
[363439860,1748723462696,-151.0,0.00021643,2]
[363439863,1748723462710,-151.0,0.00021643,2]
[363439864,1748723462721,-169.850088,0.00021643,2]
[363439866,1748723462731,-169.850088,0.00021643,2]
[363439868,1748723462742,-491.25,0.00021643,2]
[363439870,1748723462752,-430.0,0.00021643,2]
[363439872,1748723462762,-1346.28,0.00021643,2]
[363439874,1748723462773,-1275.45,0.00021643,2]
[363439876,1748723462783,-4058.21,0.00021643,2]
[363439877,1748723462796,-687.42,0.00021643,2]
[363439878,1748723462809,-510.22,0.00021643,2]
[363439879,1748723462820,-1855.36,0.00021643,2]
[363439880,1748723462831,-549.28,0.00021643,2]
[363439881,1748723462842,-2545.31,0.00021643,2]
[363439882,1748723462852,-2440.1,0.00021643,2]
[363439883,1748723462863,-4161.42,0.00021643,2]
[363439884,1748723462874,-3821.95,0.00021643,2]
[363439885,1748723462885,-1787.9,0.00021643,2]
[363439886,1748723462899,-997.0,0.00021643,2]
[363439887,1748723462908,-1305.15,0.00021643,2]
[363439888,1748723462919,-635.47,0.00021643,2]
[363439889,1748723462929,-676.32,0.00021643,2]
[363439890,1748723463067,-604.46,0.00021643,2]
[363439891,1748723463077,-2103.24,0.00021643,2]
[363439892,1748723463087,-691.42,0.00021643,2]
[363439893,1748723463098,-565.94,0.00021643,2]
[363439894,1748723463108,-667.22,0.00021643,2]
[363439895,1748723463118,-509.46,0.00021643,2]
[363439896,1748723463128,-1316.21,0.00021643,2]
[363439897,1748723463138,-567.48,0.00021643,2]
[363439898,1748723463148,-270.32,0.00021643,2]
[363439899,1748723463158,-1844.99,0.00021643,2]
[363439900,1748723463168,-1277.28,0.00021643,2]
[363439901,1748723463178,-2211.97,0.00021643,2]
[363439902,1748723463188,-623.15,0.00021643,2]
[363439903,1748723463198,-1211.99,0.00021643,2]
[363439904,1748723463208,-635.21,0.00021643,2]
[363439905,1748723463218,-2050.88,0.00021643,2]
[363439906,1748723463228,-1054.69,0.00021643,2]
[363439907,1748723463238,-1983.68,0.00021643,2]
[363439908,1748723463248,-158.4581234,0.00021671,2]
[363439909,1748723463257,-176.4540852,0.00021671,2]
[363439910,1748723463268,-572.2963003,0.00021671,2]
[363439911,1748723463278,-158.4581234,0.00021671,2]
[363439912,1748723463288,-176.4540852,0.00021671,2]
[363439913,1748723463298,-572.2963003,0.00021671,2]
[363439914,1748723463308,-158.4581234,0.00021671,2]
[363439915,1748723463318,-176.4540852,0.00021671,2]
[363439916,1748723463328,-572.2963003,0.00021671,2]
[363439917,1748723463339,-158.4581234,0.00021671,2]
[363439918,1748723463348,-572.2963003,0.00021671,2]
[363439919,1748723463359,-176.4540852,0.00021671,2]
[363439920,1748723463368,-158.4581234,0.00021671,2]
[363439921,1748723463378,-572.2963003,0.00021671,2]
[363439922,1748723463388,-158.4581234,0.00021671,2]
[363439923,1748723463398,-572.2963003,0.00021671,2]
[363439924,1748723463408,-572.2963003,0.00021671,2]
[363439925,1748723463418,-721.0,0.00021757,2]
[363439926,1748723463428,-721.0,0.00021757,2]
[363439927,1748723463437,-721.0,0.00021757,2]
[363439928,1748723463447,-338.33621332,0.00021757,2]
[363439929,1748723463457,-791.05560132,0.00021762,5]
[363439930,1748723463467,-12664.98044988,0.000218,30]
[363439931,1748723463477,-842.5625,0.000218,30]
[363439932,1748723463488,-212.77096907,0.000218,30]
[363439933,1748723463497,-3441.23008111,0.00021818,2]
[363439934,1748723463507,-652.2791708,0.00021829,2]
[363439935,1748723463518,-150.0,0.000219,5]
[363439936,1748723463528,-250.0,0.000219,30]
[363439937,1748723463537,-200.0,0.00021917,2]
[363439938,1748723463547,-500.0,0.00021917,2]
[363439939,1748723463558,-491.25,0.00021917,2]
[363439940,1748723463570,-430.0,0.00021917,2]
[363439941,1748723463580,-1346.28,0.00021917,2]
[363439942,1748723463591,-1275.45,0.00021917,2]
[363439943,1748723463601,-4058.21,0.00021917,2]
[363439944,1748723463612,-687.42,0.00021917,2]
[363439945,1748723463623,-510.22,0.00021917,2]
[363439946,1748723463632,-1855.36,0.00021917,2]
[363439947,1748723463642,-549.28,0.00021917,2]
[363439948,1748723463652,-2545.31,0.00021917,2]
[363439949,1748723463661,-2440.1,0.00021917,2]
[363439950,1748723463672,-4161.42,0.00021917,2]
[363439951,1748723463682,-3821.95,0.00021917,2]
[363439952,1748723463692,-1787.9,0.00021917,2]
[363439953,1748723463701,-997.0,0.00021917,2]
[363439954,1748723463711,-1305.15,0.00021917,2]
[363439955,1748723463723,-635.47,0.00021917,2]
[363439956,1748723463732,-676.32,0.00021917,2]
[363439957,1748723463743,-604.46,0.00021917,2]
[363439958,1748723463753,-2103.24,0.00021917,2]
[363439959,1748723463763,-691.42,0.00021917,2]
[363439960,1748723463773,-565.94,0.00021917,2]
[363439961,1748723463783,-667.22,0.00021917,2]
[363439962,1748723463793,-151.0,0.00021917,2]
[363439963,1748723463803,-151.0,0.00021917,2]
[363439964,1748723463813,-509.46,0.00021917,2]
[363439965,1748723463823,-1316.21,0.00021917,2]
[363439966,1748723463834,-567.48,0.00021917,2]
[363439967,1748723463844,-1844.99,0.00021917,2]
[363439968,1748723463855,-1277.28,0.00021917,2]
[363439969,1748723463865,-2211.97,0.00021917,2]
[363439970,1748723463875,-471.524444,0.00021917,2]
[363439971,1748723463884,-471.524444,0.00021917,2]
[363439972,1748723463899,-623.15,0.00021917,2]
[363439973,1748723463909,-1211.99,0.00021917,2]
[363439974,1748723463919,-635.21,0.00021917,2]
[363439975,1748723463931,-798.672016,0.00021917,2]
[363439976,1748723463941,-798.672016,0.00021917,2]
[363439977,1748723463951,-2050.88,0.00021917,2]
[363439978,1748723463961,-1054.69,0.00021917,2]
[363439979,1748723463971,-1983.68,0.00021917,2]
[363439980,1748723463982,-836.042454,0.00021918,2]
[363439981,1748723463992,-836.042454,0.00021918,2]
[363439982,1748723464003,-836.042454,0.00021918,2]
[363439983,1748723464015,-836.042454,0.00021918,2]
[363439984,1748723464026,-836.042454,0.00021918,2]
[363439985,1748723464037,-836.042454,0.00021918,2]
[363439986,1748723464047,-836.042454,0.00021918,2]
[363439987,1748723464058,-836.042454,0.00021918,2]
[363439988,1748723464067,-151.0,0.00021918,7]
[363439989,1748723464077,-151.0,0.00021918,7]
[363439990,1748723464087,-151.0,0.00021918,7]
[363439991,1748723464097,-151.0,0.00021918,7]
[363439992,1748723464107,-151.0,0.00021918,7]
[363439993,1748723464116,-151.0,0.00021918,7]
[363439994,1748723464126,-151.0,0.00021918,7]
[363439995,1748723464136,-151.0,0.00021918,7]
[363439996,1748723464145,-151.0,0.00021918,7]
[363439997,1748723464155,-151.0,0.00021918,7]
[363439998,1748723464164,-348.188617,0.00021918,7]
[363439999,1748723464173,-348.188617,0.00021918,7]
[363440000,1748723464183,-836.042454,0.00021918,7]
[363440001,1748723464193,-836.042454,0.00021918,7]
[363440002,1748723464203,-151.0,0.00021918,7]
[363440003,1748723464213,-1169.390063,0.00021918,7]
[363440004,1748723464223,-1169.390063,0.00021918,7]
[363440005,1748723464232,-151.0,0.00021918,7]
[363440006,1748723464242,-151.0,0.00021918,7]
[363440007,1748723464252,-151.0,0.00021918,7]
[363440008,1748723464262,-247.061767,0.00021918,7]
[363440009,1748723464272,-166.302287,0.00021918,7]
[363440010,1748723464282,-166.302287,0.00021918,7]
[363440011,1748723464293,-347.002619,0.00021918,7]
[363440012,1748723464303,-347.002619,0.00021918,7]
[363440013,1748723464313,-716.499511,0.00021918,2]
[363440014,1748723464323,-716.499511,0.00021918,2]
[363440015,1748723464333,-151.0,0.00021918,7]
[363440016,1748723464343,-631.83,0.0002199,10]
[363440017,1748723464353,-526.53,0.0002199,10]
[363440018,1748723464363,-1176.528951,0.00021999,7]
[363440019,1748723464374,-1176.528951,0.00021999,7]
[363440020,1748723464384,-154358.27,0.00022,7]
[363440021,1748723464394,-151.0,0.00022,7]
[363440022,1748723464404,-288.807364,0.00022,7]
[363440023,1748723464415,-204.02062,0.00022,7]
[363440024,1748723464425,-204.02062,0.00022,7]
[363440025,1748723464435,-151.0,0.00022,7]
[363440026,1748723464445,-172.985015,0.00022,7]
[363440027,1748723464454,-151.0,0.00022,7]
[363440028,1748723464464,-155.904382,0.00022,7]
[363440029,1748723464474,-151.0,0.00022,7]
[363440030,1748723464484,-151.0,0.00022,7]
[363440031,1748723464493,-151.0,0.00022,7]
[363440032,1748723464503,-158.046558,0.00022,7]
[363440033,1748723464513,-151.0,0.00022,7]
[363440034,1748723464609,-151.0,0.00022,7]
[363440035,1748723464619,-169.850088,0.00022,7]
[363440036,1748723464629,-169.850088,0.00022,7]
[363440037,1748723464639,-151.0,0.00022,7]
[363440038,1748723464648,-151.0,0.00022,7]
[363440039,1748723464658,-349.805213,0.00022,7]
[363440040,1748723464668,-349.805213,0.00022,7]
[363440041,1748723464677,-348.188617,0.00022,7]
[363440042,1748723464687,-348.188617,0.00022,7]
[363440043,1748723464697,-165.745473,0.00022,7]
[363440044,1748723464707,-151.0,0.00022,7]
[363440045,1748723464717,-165.745473,0.00022,7]
[363440046,1748723464727,-1268.83,0.00022,2]
[363440047,1748723464737,-151.0,0.00022,7]
[363440048,1748723464747,-338.268121,0.00022,7]
[363440049,1748723464757,-151.0,0.00022,2]
[363440050,1748723464769,-338.268121,0.00022,7]
[363440051,1748723464779,-151.0,0.00022,7]
[363440052,1748723464789,-151.0,0.00022,7]
[363440053,1748723464798,-1246.951292,0.00022,7]
[363440054,1748723464808,-1246.951292,0.00022,7]
[363440055,1748723464818,-836.042454,0.00022,7]
[363440056,1748723464828,-836.042454,0.00022,7]
[363440057,1748723464838,-151.0,0.00022,7]
[363440058,1748723464848,-1169.390063,0.00022,7]
[363440059,1748723464858,-1169.390063,0.00022,7]
[363440060,1748723464868,-151.0,0.00022,7]
[363440061,1748723464878,-151.0,0.00022,7]
[363440062,1748723464892,-151.0,0.00022,7]
[363440063,1748723464901,-166.302287,0.00022,7]
[363440064,1748723464911,-166.302287,0.00022,7]
[363440065,1748723464920,-151.0,0.00022,7]
[363440066,1748723464931,-347.002619,0.00022,7]
[363440067,1748723464940,-347.002619,0.00022,7]
[363440068,1748723464950,-151.0,0.00022,7]
[363440069,1748723464961,-842.5625,0.00022,7]
[363440070,1748723464972,-716.499511,0.00022,2]
[363440071,1748723464983,-716.499511,0.00022,2]
[363440072,1748723464992,-471.524444,0.00022,7]
[363440073,1748723465002,-471.524444,0.00022,7]
[363440074,1748723465012,-212.77096907,0.00022,7]
[363440075,1748723465023,-798.672016,0.00022,7]
[363440076,1748723465033,-798.672016,0.00022,7]
[363440077,1748723465043,-791.05560132,0.00022003,6]
[363440078,1748723465053,-1001.529059,0.00022015,3]
[363440079,1748723465063,-3441.23008103,0.00022067,2]
[363440080,1748723465072,-68620.89,0.000221,2]
[363440081,1748723465082,-299.474068,0.000221,7]
[363440082,1748723465092,-151.0,0.000221,7]
[363440083,1748723465102,-1176.528951,0.000221,7]
[363440084,1748723465112,-1176.528951,0.000221,7]
[363440085,1748723465124,-800.0,0.00022156,2]
[363440086,1748723465134,-500.0,0.0002216,2]
[363440087,1748723465144,-2500.0,0.00022164,2]
[363440088,1748723465154,-491.25,0.00022191,2]
[363440089,1748723465163,-354.5,0.00022191,2]
[363440090,1748723465173,-1346.28,0.00022191,2]
[363440091,1748723465183,-1275.45,0.00022191,2]
[363440092,1748723465195,-4058.21,0.00022191,2]
[363440093,1748723465207,-687.42,0.00022191,2]
[363440094,1748723465216,-510.22,0.00022191,2]
[363440095,1748723465226,-1855.36,0.00022191,2]
[363440096,1748723465237,-549.28,0.00022191,2]
[363440097,1748723465247,-2545.31,0.00022191,2]
[363440098,1748723465257,-2440.1,0.00022191,2]
[363440099,1748723465268,-4161.42,0.00022191,2]
[363440100,1748723465278,-3821.95,0.00022191,2]
[363440101,1748723465288,-1787.9,0.00022191,2]
[363440102,1748723465298,-997.0,0.00022191,2]
[363440103,1748723465307,-1305.15,0.00022191,2]
[363440104,1748723465319,-635.47,0.00022191,2]
[363440105,1748723465328,-676.32,0.00022191,2]
[363440106,1748723465338,-604.46,0.00022191,2]
[363440107,1748723465347,-2103.24,0.00022191,2]
[363440108,1748723465357,-691.42,0.00022191,2]
[363440109,1748723465367,-565.94,0.00022191,2]
[363440110,1748723465376,-667.22,0.00022191,2]
[363440111,1748723465385,-509.46,0.00022191,2]
[363440112,1748723465395,-1316.21,0.00022191,2]
[363440113,1748723465405,-567.48,0.00022191,2]
[363440114,1748723465415,-1844.99,0.00022191,2]
[363440115,1748723465425,-1277.28,0.00022191,2]
[363440116,1748723465435,-2211.97,0.00022191,2]
[363440117,1748723465444,-623.15,0.00022191,2]
[363440118,1748723465454,-1211.99,0.00022191,2]
[363440119,1748723465463,-635.21,0.00022191,2]
[363440120,1748723465473,-2050.88,0.00022191,2]
[363440121,1748723465482,-1054.69,0.00022191,2]
[363440122,1748723465492,-1983.68,0.00022191,2]
[363440123,1748723465501,-800.0,0.00022211,2]
[363440124,1748723465512,-171.40581184,0.00022219,2]
[363440125,1748723465521,-800.0,0.00022244,2]
[363440126,1748723465532,-791.05560132,0.00022245,6]
[363440127,1748723465541,-151.0,0.000223,10]
[363440128,1748723465551,-4835.96359529,0.000223,8]
[363440129,1748723465569,-3894.41640471,0.000223,8]
[363440130,1748723465580,-800.0,0.00022302,2]
[363440131,1748723465589,-1844.42040319,0.00022315,2]
[363440132,1748723465601,-1596.80967784,0.00022315,2]
[363440133,1748723465611,-500.0,0.0002236,2]
[363440134,1748723465620,-39022.03,0.00022384,2]
[363440135,1748723465630,-207.53,0.000224,7]
[363440136,1748723465639,-1000.0,0.000224,2]
[363440137,1748723465649,-500.0,0.00022465,2]
[363440138,1748723465659,-151.0,0.00022465,7]
[363440139,1748723465668,-151.0,0.00022465,7]
[363440140,1748723465678,-338.268121,0.00022465,7]
[363440141,1748723465688,-218.669422,0.00022465,2]
[363440142,1748723465698,-338.268121,0.00022465,7]
[363440143,1748723465709,-151.0,0.00022465,7]
[363440144,1748723465719,-491.25,0.00022465,2]
[363440145,1748723465729,-1246.951292,0.00022465,7]
[363440146,1748723465740,-1246.951292,0.00022465,7]
[363440147,1748723465751,-242.98206339,0.00022465,2]
[363440148,1748723465764,-1346.28,0.00022465,2]
[363440149,1748723465776,-1275.45,0.00022465,2]
[363440150,1748723465787,-4058.21,0.00022465,2]
[363440151,1748723465797,-687.42,0.00022465,2]
[363440152,1748723465807,-836.042454,0.00022465,7]
[363440153,1748723465817,-510.22,0.00022465,2]
[363440154,1748723465827,-836.042454,0.00022465,7]
[363440155,1748723465838,-1855.36,0.00022465,2]
[363440156,1748723465848,-549.28,0.00022465,2]
[363440157,1748723465858,-151.0,0.00022465,7]
[363440158,1748723465868,-2545.31,0.00022465,2]
[363440159,1748723465878,-2440.1,0.00022465,2]
[363440160,1748723465888,-4161.42,0.00022465,2]
[363440161,1748723465901,-3821.95,0.00022465,2]
[363440162,1748723465911,-1169.390063,0.00022465,7]
[363440163,1748723465921,-1169.390063,0.00022465,7]
[363440164,1748723465931,-151.0,0.00022465,7]
[363440165,1748723465941,-1787.9,0.00022465,2]
[363440166,1748723466026,-151.0,0.00022465,7]
[363440167,1748723466037,-997.0,0.00022465,2]
[363440168,1748723466047,-295.301443,0.00022465,7]
[363440169,1748723466056,-166.302287,0.00022465,7]
[363440170,1748723466066,-1305.15,0.00022465,2]
[363440171,1748723466075,-166.302287,0.00022465,7]
[363440172,1748723466085,-635.47,0.00022465,2]
[363440173,1748723466094,-676.32,0.00022465,2]
[363440174,1748723466105,-604.46,0.00022465,2]
[363440175,1748723466114,-2103.24,0.00022465,2]
[363440176,1748723466123,-691.42,0.00022465,2]
[363440177,1748723466133,-565.94,0.00022465,2]
[363440178,1748723466142,-667.22,0.00022465,2]
[363440179,1748723466152,-151.0,0.00022465,7]
[363440180,1748723466162,-347.002619,0.00022465,7]
[363440181,1748723466171,-347.002619,0.00022465,7]
[363440182,1748723466181,-151.0,0.00022465,7]
[363440183,1748723466190,-509.46,0.00022465,2]
[363440184,1748723466199,-1316.21,0.00022465,2]
[363440185,1748723466210,-567.48,0.00022465,2]
[363440186,1748723466219,-716.499511,0.00022465,2]
[363440187,1748723466228,-716.499511,0.00022465,2]
[363440188,1748723466237,-1844.99,0.00022465,2]
[363440189,1748723466247,-1277.28,0.00022465,2]
[363440190,1748723466255,-2211.97,0.00022465,2]
[363440191,1748723466265,-471.524444,0.00022465,7]
[363440192,1748723466275,-471.524452,0.00022465,7]
[363440193,1748723466284,-623.15,0.00022465,2]
[363440194,1748723466293,-1211.99,0.00022465,2]
[363440195,1748723466303,-635.21,0.00022465,2]
[363440196,1748723466313,-798.672016,0.00022465,7]
[363440197,1748723466323,-798.672016,0.00022465,7]
[363440198,1748723466333,-2050.88,0.00022465,2]
[363440199,1748723466343,-1054.69,0.00022465,2]
[363440200,1748723466354,-1983.68,0.00022465,2]
[363440201,1748723466364,-791.05560132,0.00022486,7]
[363440202,1748723466374,-260.7380656,0.00022493,2]
[363440203,1748723466383,-158.4581234,0.00022493,2]